[Event "7th Cesme Open-A 2019"]
[Site "Cesme"]
[Date "2019.06.26"]
[Round "4"]
[White "Mammadov, Zaur"]
[Black "Ozenir, Ekin Baris"]
[Result "0-1"]
[ECO "B10"]
[WhiteElo "2428"]
[BlackElo "2250"]
[Annotator "RC"]
[PlyCount "128"]
[EventDate "2019.06.24"]
[EventType "swiss"]
[EventCountry "TUR"]
[SourceTitle "playchess.com"]
[Source "ChessBase"]
[SourceQuality "1"]
[TimeControl "5400+30"]

1. e4 {[%emt 0:00:30]} c6 {[%emt 0:00:30]} 2. c4 {[%emt 0:00:00]} d5 {[%emt 0:00:30]} 3. cxd5 {[%emt 0:00:00]} cxd5 {[%emt 0:00:00]} 4. exd5 {[%emt 0:00:00]} Nf6 {[%emt 0:01:00]} 5. Nc3 {[%emt 0:00:00]} Nxd5 {[%emt 0:00:30]} 6. Nf3 {[%emt 0:00:00]} Nxc3 {[%emt 0:01:30]} 7. bxc3 {[%emt 0:00:00]} g6 {[%emt 0:00:30]} 8. Qa4+ {[%emt 0:01:30]} Nc6 {[%emt 0:05:30]} 9. d4 {[%emt 0:08:30]} Bg7 {[%emt 0:01:30]} 10. Be2 {[%emt 0:04:30]} Qa5 {[%emt 0:09:30]} 11. Qxa5 {[%emt 0:02:30]} Nxa5 {[%emt 0:00:30]} 12. O-O {[%emt 0:00:00]} Be6 {[%emt 0:04:30]} 13. Re1 {[%emt 0:01:00]} Bf6 {[%emt 0:12:30]} 14. Nd2 {[%emt 0:08:30]} Bd5 {[%emt 0:10:30]} 15. Rb1 {[%emt 0:07:30]} O-O-O {[%emt 0:09:30]} 16. Bg4+ {[%emt 0:08:30]} e6 {[%emt 0:04:30]} 17. Rb5 {[%emt 0:05:30]} b6 {[%emt 0:07:30]} 18. Ne4 {[%emt 0:00:30]} Be7 {[%emt 0:00:30]} 19. Ng5 {[%emt 0:01:30]} Bxg5 {[%emt 0:05:30]} 20. Bxg5 {[%emt 0:00:30]} Rd7 {[%emt 0:00:00]} 21. Bf6 {[%emt 0:00:30]} Re8 {[%emt 0:03:00]} 22. c4 {[%emt 0:06:30]} Bb7 {[%emt 0:10:58]} 23. c5 {[%emt 0:05:30]} h5 {[%emt 0:05:01]} 24. Be2 {[%emt 0:02:30]} Bc6 {[%emt 0:03:15]} 25. Rb4 {[%emt 0:00:00]} bxc5 {[%emt 0:01:35]} 26. dxc5 {[%emt 0:00:00]} Nb7 {[%emt 0:00:43]} 27. Ba6 {[%emt 0:11:30]} e5 {[%emt 0:00:34]} 28. Reb1 {[%emt 0:03:30]} Re6 {[%emt 0:01:39]} 29. Bg7 {[%emt 0:00:30]} f5 {[%emt 0:00:40]} 30. Bf8 {[%emt 0:00:30]} Be4 {[%emt 0:00:33]} 31. Bd6 {[%emt 0:02:30]} Bxb1 {[%emt 0:00:30]} 32. Rxb1 {[%emt 0:01:30]} Rexd6 {[%emt 0:00:30]} 33. cxd6 {[%emt 0:01:31]} Kb8 {[%emt 0:00:10]} 34. f3 {[%emt 0:01:59]} Ka8 {[%emt 0:01:12]} 35. Rb5 {[%emt 0:00:01]} e4 {[%emt 0:00:08]} 36. Bxb7+ {[%emt 0:06:37]} Rxb7 {[%emt 0:00:30]} 37. Re5 {[%emt 0:00:00]} Rd7 {[%emt 0:00:26]} 38. fxe4 {[%emt 0:00:11]} fxe4 {[%emt 0:00:31]} 39. Re6 {[%emt 0:00:08]} Kb7 {[%emt 0:00:33]} 40. Rxg6 {[%emt 0:02:17]} Kc6 {[%emt 0:00:04]} 41. Re6 {[%emt 0:02:06]} Kd5 {[%emt 0:00:44]} 42. Rh6 {[%emt 0:00:24]} Rxd6 {[%emt 0:00:16]} 43. Rxh5+ {[%emt 0:00:06]} Kd4 {[%emt 0:00:40]} 44. Ra5 {[%emt 0:00:40]} Rf6 {[%emt 0:00:44]} 45. g4 {[%emt 0:05:22]} e3 {[%emt 0:00:13]} 46. Rxa7 {[%emt 0:01:27]} e2 {[%emt 0:00:14]} 47. Rd7+ {[%emt 0:00:16]} Kc3 {[%emt 0:00:49]} 48. Re7 {[%emt 0:01:22]} Rf1+ {[%emt 0:00:52]} 49. Kg2 {[%emt 0:00:30]} e1=Q {[%emt 0:00:30]} 50. Rxe1 {[%emt 0:00:00]} Rxe1 {[%emt 0:00:00]} 51. Kf3 {[%emt 0:00:00]} Kd4 {[%emt 0:00:09]} 52. Kf4 {[%emt 0:00:00]} Rh1 {[%emt 0:00:27]} 53. Kf5 {[%emt 0:00:50]} Rxh2 {[%emt 0:00:30]} 54. g5 {[%emt 0:00:30]} Kd5 {[%emt 0:00:30]} 55. Kf6 {[%emt 0:00:30]} Rf2+ {[%emt 0:00:30]} 56. Ke7 {[%emt 0:00:30]} Rg2 {[%emt 0:00:00]} 57. Kf6 {[%emt 0:00:00]} Kd6 {[%emt 0:00:00]} 58. g6 {[%emt 0:00:00]} Rf2+ {[%emt 0:00:16]} 59. Kg7 {[%emt 0:00:00]} Ke7 {[%emt 0:00:30]} 60. a4 {[%emt 0:00:00]} Ra2 {[%emt 0:00:30]} 61. a5 {[%emt 0:00:00]} Rxa5 {[%emt 0:00:30]} 62. Kg8 {[%emt 0:00:22]} Kf6 {[%emt 0:00:24]} 63. g7 {[%emt 0:00:00]} Kg6 {[%emt 0:00:08]} 64. Kh8 {[%emt 0:00:07]} Rh5+ {[%emt 0:00:03]} 0-1

[Event "7th Cesme Open-A 2019"]
[Site "Cesme"]
[Date "2019.06.26"]
[Round "4"]
[White "Rzayev, Askar Aliakbar"]
[Black "Chighladze, Iveri"]
[Result "0-1"]
[ECO "A57"]
[WhiteElo "2089"]
[BlackElo "2317"]
[Annotator "RC"]
[PlyCount "98"]
[EventDate "2019.06.24"]
[EventType "swiss"]
[EventCountry "TUR"]
[SourceTitle "playchess.com"]
[Source "ChessBase"]
[SourceQuality "1"]
[TimeControl "5400+30"]

1. d4 {[%emt 0:03:30]} Nf6 {[%emt 0:00:30]} 2. c4 {[%emt 0:00:30]} a6 {[%emt 0:02:30]} 3. Nc3 {[%emt 0:03:30]} c5 {[%emt 0:00:30]} 4. d5 {[%emt 0:00:00]} b5 {[%emt 0:00:30]} 5. cxb5 {[%emt 0:02:00]} axb5 {[%emt 0:00:30]} 6. Nxb5 {[%emt 0:00:30]} g6 {[%emt 0:05:30]} 7. Nc3 {[%emt 0:00:30]} Bg7 {[%emt 0:00:30]} 8. e4 {[%emt 0:00:30]} d6 {[%emt 0:00:30]} 9. Bb5+ {[%emt 0:02:30]} Bd7 {[%emt 0:00:30]} 10. Bxd7+ {[%emt 0:00:30]} Nbxd7 {[%emt 0:00:30]} 11. Nf3 {[%emt 0:00:30]} O-O {[%emt 0:00:30]} 12. O-O {[%emt 0:00:00]} Qb6 {[%emt 0:06:30]} 13. Qe2 {[%emt 0:06:00]} Qa6 {[%emt 0:01:30]} 14. Re1 {[%emt 0:16:30]} Ng4 {[%emt 0:14:30]} 15. Bg5 {[%emt 0:05:30]} Bxc3 {[%emt 0:00:30]} 16. bxc3 {[%emt 0:01:30]} f6 {[%emt 0:00:00]} 17. h3 {[%emt 0:19:30]} Nge5 {[%emt 0:03:00]} 18. Nxe5 {[%emt 0:01:30]} Nxe5 {[%emt 0:00:00]} 19. Be3 {[%emt 0:05:30]} Qxe2 {[%emt 0:09:00]} 20. Rxe2 {[%emt 0:00:00]} Ra4 {[%emt 0:00:30]} 21. f3 {[%emt 0:00:00]} Rfa8 {[%emt 0:03:30]} 22. Bf4 {[%emt 0:07:30]} Nd3 {[%emt 0:00:30]} 23. Bg3 {[%emt 0:01:30]} Rc4 {[%emt 0:02:30]} 24. f4 {[%emt 0:03:02]} Rxc3 {[%emt 0:04:30]} 25. Re3 {[%emt 0:01:43]} Rca3 {[%emt 0:01:30]} 26. e5 {[%emt 0:05:54]} Nb4 {[%emt 0:00:30]} 27. Rxa3 {[%emt 0:00:32]} Rxa3 {[%emt 0:00:30]} 28. Kh2 {[%emt 0:00:05]} Rxa2 {[%emt 0:00:30]} 29. Re1 {[%emt 0:01:14]} f5 {[%emt 0:00:30]} 30. Rd1 {[%emt 0:06:42]} Re2 {[%emt 0:04:30]} 31. Bh4 {[%emt 0:02:19]} Kf8 {[%emt 0:00:30]} 32. exd6 {[%emt 0:00:03]} exd6 {[%emt 0:00:30]} 33. Bd8 {[%emt 0:01:24]} c4 {[%emt 0:01:30]} 34. Ba5 {[%emt 0:03:33]} Nd3 {[%emt 0:00:30]} 35. Rb1 {[%emt 0:00:30]} Nxf4 {[%emt 0:00:30]} 36. Rb8+ {[%emt 0:00:34]} Kg7 {[%emt 0:03:30]} 37. Bb4 {[%emt 0:00:49]} Nxg2 {[%emt 0:01:30]} 38. Rb7+ {[%emt 0:00:21]} Kf6 {[%emt 0:00:30]} 39. Bxd6 {[%emt 0:00:32]} f4 {[%emt 0:00:30]} 40. Kg1 {[%emt 0:00:22]} c3 {[%emt 0:02:30]} 41. Rc7 {[%emt 0:00:14]} c2 {[%emt 0:00:30]} 42. Ba3 {[%emt 0:00:11]} f3 {[%emt 0:00:30]} 43. Bb2+ {[%emt 0:00:49]} Kg5 {[%emt 0:06:30]} 44. d6 {[%emt 0:00:58]} Kh4 {[%emt 0:00:30]} 45. Rc4+ {[%emt 0:00:37]} Kg3 {[%emt 0:03:30]} 46. Rg4+ {[%emt 0:00:49]} Kxh3 {[%emt 0:00:30]} 47. Rg5 {[%emt 0:00:09]} f2+ {[%emt 0:00:30]} 48. Kf1 {[%emt 0:00:51]} Ne3+ {[%emt 0:00:30]} 49. Kxe2 {[%emt 0:00:00]} f1=Q+ {[%emt 0:00:00]} 0-1

[Event "7th Cesme Open-A 2019"]
[Site "Cesme"]
[Date "2019.06.26"]
[Round "4"]
[White "Unat, Can Haktan"]
[Black "Eminov, Orkhan"]
[Result "0-1"]
[ECO "A43"]
[WhiteElo "2079"]
[BlackElo "2314"]
[Annotator "RC"]
[PlyCount "164"]
[EventDate "2019.06.24"]
[EventType "swiss"]
[EventCountry "TUR"]
[SourceTitle "playchess.com"]
[Source "ChessBase"]
[SourceQuality "1"]
[TimeControl "5400+30"]

1. d4 {[%emt 0:00:30]} Nf6 {[%emt 0:05:30]} 2. Nc3 {[%emt 0:00:30]} c5 {[%emt 0:03:30]} 3. d5 {[%emt 0:00:00]} d6 {[%emt 0:00:30]} 4. e4 {[%emt 0:01:00]} g6 {[%emt 0:00:30]} 5. Be2 {[%emt 0:00:00]} Bg7 {[%emt 0:00:30]} 6. Nf3 {[%emt 0:00:00]} O-O {[%emt 0:08:30]} 7. Nd2 {[%emt 0:00:00]} Nbd7 {[%emt 0:00:30]} 8. O-O {[%emt 0:00:00]} Rb8 {[%emt 0:00:30]} 9. Nc4 {[%emt 0:00:30]} Ne8 {[%emt 0:00:30]} 10. a4 {[%emt 0:00:30]} b6 {[%emt 0:00:30]} 11. f4 {[%emt 0:03:30]} a6 {[%emt 0:10:30]} 12. Be3 {[%emt 0:05:30]} Bb7 {[%emt 0:02:30]} 13. Qd2 {[%emt 0:09:30]} Ba8 {[%emt 0:11:30]} 14. Na3 {[%emt 0:01:30]} Nc7 {[%emt 0:00:30]} 15. Rab1 {[%emt 0:07:30]} Re8 {[%emt 0:01:30]} 16. Bc4 {[%emt 0:04:30]} Nf6 {[%emt 0:05:30]} 17. Bf2 {[%emt 0:18:30]} Ng4 {[%emt 0:15:30]} 18. Bh4 {[%emt 0:08:30]} Qd7 {[%emt 0:00:30]} 19. Ba2 {[%emt 0:14:30]} b5 {[%emt 0:02:30]} 20. Ne2 {[%emt 0:01:30]} Nf6 {[%emt 0:05:30]} 21. axb5 {[%emt 0:04:09]} axb5 {[%emt 0:00:30]} 22. Ng3 {[%emt 0:02:40]} Qg4 {[%emt 0:03:47]} 23. Bxf6 {[%emt 0:00:20]} Bxf6 {[%emt 0:01:26]} 24. Rf3 {[%emt 0:03:58]} Qd7 {[%emt 0:04:15]} 25. f5 {[%emt 0:07:11]} Rf8 {[%emt 0:01:17]} 26. Rbf1 {[%emt 0:00:26]} Ne8 {[%emt 0:00:14]} 27. c4 {[%emt 0:01:10]} bxc4 {[%emt 0:05:38]} 28. Nxc4 {[%emt 0:00:13]} Bb7 {[%emt 0:00:22]} 29. Rb3 {[%emt 0:03:21]} Bg7 {[%emt 0:01:47]} 30. h4 {[%emt 0:00:51]} Nf6 {[%emt 0:00:26]} 31. h5 {[%emt 0:00:55]} gxh5 {[%emt 0:03:21]} 32. Qg5 {[%emt 0:01:23]} h6 {[%emt 0:00:30]} 33. Qh4 {[%emt 0:00:30]} Ba6 {[%emt 0:00:30]} 34. Rbf3 {[%emt 0:00:30]} Bxc4 {[%emt 0:00:30]} 35. Bxc4 {[%emt 0:00:30]} Rxb2 {[%emt 0:00:02]} 36. Nxh5 {[%emt 0:00:27]} Nxh5 {[%emt 0:00:30]} 37. Qxh5 {[%emt 0:00:30]} Qa4 {[%emt 0:00:45]} 38. f6 {[%emt 0:00:23]} exf6 {[%emt 0:04:09]} 39. Bd3 {[%emt 0:01:00]} Qd4+ {[%emt 0:00:48]} 40. Kh1 {[%emt 0:00:02]} Rb3 {[%emt 0:00:35]} 41. Rd1 {[%emt 0:01:17]} Qe5 {[%emt 0:00:30]} 42. Rf5 {[%emt 0:00:30]} Qg3 {[%emt 0:00:30]} 43. Rf3 {[%emt 0:00:00]} Qe5 {[%emt 0:00:20]} 44. Rf5 {[%emt 0:00:00]} Qd4 {[%emt 0:01:35]} 45. Bc2 {[%emt 0:00:00]} Qc3 {[%emt 0:00:40]} 46. Bxb3 {[%emt 0:00:04]} Qxb3 {[%emt 0:00:00]} 47. Rdf1 {[%emt 0:00:33]} Qc2 {[%emt 0:00:10]} 48. Qg4 {[%emt 0:00:11]} Re8 {[%emt 0:00:17]} 49. Rxf6 {[%emt 0:01:15]} Qxe4 {[%emt 0:00:09]} 50. R6f4 {[%emt 0:00:35]} Qxd5 {[%emt 0:00:42]} 51. Rxf7 {[%emt 0:01:41]} Qxf7 {[%emt 0:01:11]} 52. Rxf7 {[%emt 0:00:30]} Kxf7 {[%emt 0:00:30]} 53. Qd7+ {[%emt 0:00:00]} Re7 {[%emt 0:00:00]} 54. Qf5+ {[%emt 0:00:00]} Bf6 {[%emt 0:00:26]} 55. Qd5+ {[%emt 0:00:00]} Kg7 {[%emt 0:00:30]} 56. g4 {[%emt 0:00:00]} Be5 {[%emt 0:00:30]} 57. Kg2 {[%emt 0:00:00]} Rc7 {[%emt 0:00:30]} 58. Qc4 {[%emt 0:00:18]} Rf7 {[%emt 0:00:30]} 59. Qe6 {[%emt 0:00:00]} Rc7 {[%emt 0:00:14]} 60. Qc4 {[%emt 0:00:28]} Rb7 {[%emt 0:01:05]} 61. Qe6 {[%emt 0:03:37]} Rf7 {[%emt 0:00:30]} 62. Qc4 {[%emt 0:00:30]} Rf4 {[%emt 0:00:30]} 63. Qe6 {[%emt 0:00:30]} c4 {[%emt 0:00:30]} 64. Qd7+ {[%emt 0:00:30]} Rf7 {[%emt 0:00:30]} 65. Qc6 {[%emt 0:00:30]} c3 {[%emt 0:00:30]} 66. Kh3 {[%emt 0:00:30]} Ra7 {[%emt 0:00:30]} 67. Kh4 {[%emt 0:00:30]} Rf7 {[%emt 0:00:30]} 68. Kh3 {[%emt 0:00:30]} Kg6 {[%emt 0:00:30]} 69. Qe4+ {[%emt 0:00:30]} Kg5 {[%emt 0:00:30]} 70. Qe3+ {[%emt 0:00:30]} Rf4 {[%emt 0:00:30]} 71. Qd3 {[%emt 0:00:30]} h5 {[%emt 0:00:30]} 72. gxh5 {[%emt 0:00:30]} Rh4+ {[%emt 0:00:30]} 73. Kg2 {[%emt 0:00:30]} Rh2+ {[%emt 0:00:30]} 74. Kg1 {[%emt 0:00:30]} Rxh5 {[%emt 0:00:30]} 75. Qe3+ {[%emt 0:00:30]} Kg6 {[%emt 0:00:30]} 76. Qd3+ {[%emt 0:00:30]} Kf6 {[%emt 0:00:30]} 77. Qc4 {[%emt 0:00:30]} Rh2 {[%emt 0:00:30]} 78. Qf1+ {[%emt 0:00:30]} Ke7 {[%emt 0:00:30]} 79. Qb5 {[%emt 0:00:30]} Rb2 {[%emt 0:00:30]} 80. Qc6 {[%emt 0:00:30]} c2 {[%emt 0:00:30]} 81. Qc7+ {[%emt 0:00:30]} Kf6 {[%emt 0:00:30]} 82. Qd8+ {[%emt 0:00:30]} Kf5 {[%emt 0:00:30]} 0-1

[Event "7th Cesme Open-A 2019"]
[Site "Cesme"]
[Date "2019.06.26"]
[Round "5"]
[White "Lavrov, Maxim"]
[Black "Kucuksari, Kaan"]
[Result "1-0"]
[ECO "A08"]
[WhiteElo "2401"]
[BlackElo "2299"]
[Annotator "NA"]
[PlyCount "79"]
[EventDate "2019.06.24"]
[EventType "swiss"]
[EventCountry "TUR"]
[SourceTitle "playchess.com"]
[Source "ChessBase"]
[SourceQuality "1"]
[TimeControl "5400+30"]

1. Nf3 {[%emt 0:00:30]} Nf6 {[%emt 0:00:30]} 2. g3 {[%emt 0:00:30]} b6 {[%emt 0:00:00]} 3. Bg2 {[%emt 0:00:00]} Bb7 {[%emt 0:00:00]} 4. O-O {[%emt 0:00:00]} e6 {[%emt 0:00:30]} 5. d3 {[%emt 0:00:00]} d5 {[%emt 0:00:00]} 6. b3 {[%emt 0:01:00]} Be7 {[%emt 0:01:00]} 7. Bb2 {[%emt 0:00:00]} c5 {[%emt 0:00:30]} 8. Nbd2 {[%emt 0:02:00]} Nc6 {[%emt 0:00:30]} 9. e4 {[%emt 0:00:30]} O-O {[%emt 0:03:30]} 10. Re1 {[%emt 0:06:30]} b5 {[%emt 0:04:30]} 11. exd5 {[%emt 0:00:30]} Nxd5 {[%emt 0:00:30]} 12. Ne5 {[%emt 0:04:30]} b4 {[%emt 0:01:30]} 13. Nxc6 {[%emt 0:04:30]} Bxc6 {[%emt 0:00:00]} 14. Nf3 {[%emt 0:00:30]} Bf6 {[%emt 0:09:00]} 15. Bxf6 {[%emt 0:10:30]} Nxf6 {[%emt 0:06:30]} 16. Ne5 {[%emt 0:05:30]} Bd5 {[%emt 0:00:00]} 17. Bxd5 {[%emt 0:05:30]} exd5 {[%emt 0:00:00]} 18. Nc6 {[%emt 0:01:30]} Qd7 {[%emt 0:03:30]} 19. Ne7+ {[%emt 0:00:30]} Kh8 {[%emt 0:00:30]} 20. Qf3 {[%emt 0:00:00]} Rae8 {[%emt 0:09:30]} 21. Nf5 {[%emt 0:00:00]} g6 {[%emt 0:01:30]} 22. Ne3 {[%emt 0:07:30]} Kg7 {[%emt 0:00:00]} 23. Ng2 {[%emt 0:05:30]} h5 {[%emt 0:06:00]} 24. Qf4 {[%emt 0:02:30]} Qh3 {[%emt 0:08:30]} 25. f3 {[%emt 0:01:30]} d4 {[%emt 0:03:30]} 26. Qg5 {[%emt 0:01:30]} Qc8 {[%emt 0:09:30]} 27. Nf4 {[%emt 0:01:30]} Qc6 {[%emt 0:02:30]} 28. Kf2 {[%emt 0:00:30]} Re3 {[%emt 0:08:30]} 29. Rxe3 {[%emt 0:01:30]} dxe3+ {[%emt 0:00:30]} 30. Kxe3 {[%emt 0:06:30]} Qd6 {[%emt 0:03:58]} 31. Kd2 {[%emt 0:02:30]} Re8 {[%emt 0:09:03]} 32. Re1 {[%emt 0:01:30]} Rxe1 {[%emt 0:00:30]} 33. Kxe1 {[%emt 0:00:00]} Qd4 {[%emt 0:00:00]} 34. Ne2 {[%emt 0:00:00]} Qa1+ {[%emt 0:00:00]} 35. Kd2 {[%emt 0:00:30]} Nd7 {[%emt 0:01:43]} 36. Qd5 {[%emt 0:01:30]} Ne5 {[%emt 0:00:25]} 37. d4 {[%emt 0:04:30]} cxd4 {[%emt 0:00:46]} 38. Qxd4 {[%emt 0:00:30]} Qxd4+ {[%emt 0:00:35]} 39. Nxd4 {[%emt 0:00:30]} g5 {[%emt 0:00:07]} 40. Ke3 {[%emt 0:00:00]} 1-0

[Event "7th Cesme Open-A 2019"]
[Site "Cesme"]
[Date "2019.06.26"]
[Round "5"]
[White "Erdogdu, Mert"]
[Black "Iskandarov, Misratdin"]
[Result "0-1"]
[ECO "B91"]
[WhiteElo "2391"]
[BlackElo "2502"]
[Annotator "ChessBase"]
[PlyCount "92"]
[EventDate "2019.06.24"]
[EventType "swiss"]
[EventCountry "TUR"]
[SourceTitle "playchess.com"]
[Source "ChessBase"]
[SourceQuality "1"]
[TimeControl "5400+30"]

1. e4 {[%emt 0:01:30]} c5 {[%emt 0:03:30]} 2. Nf3 {[%emt 0:00:30]} d6 {[%emt 0:00:00]} 3. d4 {[%emt 0:00:30]} cxd4 {[%emt 0:00:00]} 4. Nxd4 {[%emt 0:00:30]} Nf6 {[%emt 0:00:30]} 5. Nc3 {[%emt 0:00:00]} a6 {[%emt 0:00:00]} 6. g3 {[%emt 0:01:00]} e5 {[%emt 0:00:00]} 7. Nb3 {[%emt 0:00:00]} Be7 {[%emt 0:00:30]} 8. Bg2 {[%emt 0:00:00]} O-O {[%emt 0:00:00]} 9. O-O {[%emt 0:00:30]} Be6 {[%emt 0:00:00]} 10. a4 {[%emt 0:03:30]} Nbd7 {[%emt 0:00:30]} 11. Re1 {[%emt 0:01:30]} Qb8 {[%emt 0:00:30]} 12. Nd2 {[%emt 0:02:30]} Bd8 {[%emt 0:00:30]} 13. Nf1 {[%emt 0:03:30]} Ba5 {[%emt 0:00:30]} 14. Bd2 {[%emt 0:00:30]} Rc8 {[%emt 0:02:30]} 15. Ne3 {[%emt 0:05:30]} Qc7 {[%emt 0:00:30]} 16. Ncd5 {[%emt 0:26:30]} Bxd5 {[%emt 0:04:30]} 17. Bxa5 {[%emt 0:00:30]} Qxa5 {[%emt 0:00:30]} 18. exd5 {[%emt 0:00:30]} g6 {[%emt 0:02:30]} 19. Ra3 {[%emt 0:10:30]} e4 {[%emt 0:05:30]} 20. c3 {[%emt 0:03:30]} Qc5 {[%emt 0:06:30]} 21. b4 {[%emt 0:01:30]} Qa7 {[%emt 0:03:30]} 22. a5 {[%emt 0:00:30]} Ne5 {[%emt 0:00:30]} 23. Qe2 {[%emt 0:03:30]} Rc7 {[%emt 0:00:30]} 24. c4 {[%emt 0:02:30]} Rac8 {[%emt 0:04:30]} 25. Qb2 {[%emt 0:01:30]} Rxc4 {[%emt 0:04:30]} 26. Nxc4 {[%emt 0:00:30]} Rxc4 {[%emt 0:00:30]} 27. Rd1 {[%emt 0:05:30]} Kg7 {[%emt 0:04:30]} 28. Bf1 {[%emt 0:03:30]} Rc7 {[%emt 0:04:30]} 29. Be2 {[%emt 0:02:30]} h5 {[%emt 0:08:30]} 30. h3 {[%emt 0:01:50]} Re7 {[%emt 0:15:30]} 31. Qd2 {[%emt 0:03:39]} Qb8 {[%emt 0:01:30]} 32. Rc3 {[%emt 0:00:13]} Qe8 {[%emt 0:02:30]} 33. Qd4 {[%emt 0:02:21]} h4 {[%emt 0:03:30]} 34. g4 {[%emt 0:01:23]} g5 {[%emt 0:01:30]} 35. Qb6 {[%emt 0:05:38]} Ng6 {[%emt 0:01:30]} 36. Qxd6 {[%emt 0:02:28]} e3 {[%emt 0:00:30]} 37. Bf3 {[%emt 0:00:55]} Nf4 {[%emt 0:05:25]} 38. Qc5 {[%emt 0:03:22]} Nxh3+ {[%emt 0:02:06]} 39. Kg2 {[%emt 0:00:02]} Nxf2 {[%emt 0:00:31]} 40. d6 {[%emt 0:02:55]} h3+ {[%emt 0:04:24]} 41. Kh2 {[%emt 0:00:12]} Re5 {[%emt 0:01:18]} 42. Qd4 {[%emt 0:01:00]} Nxd1 {[%emt 0:00:43]} 43. Qxd1 {[%emt 0:00:10]} e2 {[%emt 0:00:32]} 44. Qe1 {[%emt 0:00:02]} Qe6 {[%emt 0:01:16]} 45. Rc2 {[%emt 0:00:48]} Qxd6 {[%emt 0:00:19]} 46. Kxh3 {[%emt 0:00:33]} Qd3 {[%emt 0:00:13]} 0-1

[Event "7th Cesme Open-A 2019"]
[Site "Cesme"]
[Date "2019.06.26"]
[Round "5"]
[White "Bashirli, Nail"]
[Black "Dogan, Nazmi Can"]
[Result "0-1"]
[ECO "B06"]
[WhiteElo "2367"]
[BlackElo "2276"]
[Annotator "NA"]
[PlyCount "164"]
[EventDate "2019.06.24"]
[EventType "swiss"]
[EventCountry "TUR"]
[SourceTitle "playchess.com"]
[Source "ChessBase"]
[SourceQuality "1"]
[TimeControl "5400+30"]

1. e4 {[%emt 0:03:30]} g6 {[%emt 0:00:30]} 2. d4 {[%emt 0:00:30]} Nf6 {[%emt 0:00:00]} 3. e5 {[%emt 0:02:30]} Nh5 {[%emt 0:00:00]} 4. Be2 {[%emt 0:00:30]} d6 {[%emt 0:00:30]} 5. Nf3 {[%emt 0:00:30]} Nc6 {[%emt 0:00:30]} 6. O-O {[%emt 0:03:30]} Bg7 {[%emt 0:06:30]} 7. exd6 {[%emt 0:00:30]} exd6 {[%emt 0:00:30]} 8. d5 {[%emt 0:00:30]} Ne7 {[%emt 0:00:30]} 9. h3 {[%emt 0:01:30]} O-O {[%emt 0:01:30]} 10. c4 {[%emt 0:00:30]} Nf6 {[%emt 0:19:30]} 11. Nc3 {[%emt 0:00:30]} Nd7 {[%emt 0:01:30]} 12. Re1 {[%emt 0:02:30]} Nc5 {[%emt 0:03:30]} 13. Bf1 {[%emt 0:01:30]} h6 {[%emt 0:01:30]} 14. Bf4 {[%emt 0:07:30]} g5 {[%emt 0:06:30]} 15. Be3 {[%emt 0:09:30]} Nf5 {[%emt 0:02:30]} 16. Bxc5 {[%emt 0:10:30]} dxc5 {[%emt 0:00:30]} 17. Bd3 {[%emt 0:00:00]} Nd6 {[%emt 0:04:30]} 18. Qd2 {[%emt 0:12:00]} Qf6 {[%emt 0:06:30]} 19. Qe3 {[%emt 0:04:30]} b6 {[%emt 0:04:30]} 20. Qe7 {[%emt 0:00:30]} Ba6 {[%emt 0:05:30]} 21. Qxc7 {[%emt 0:04:30]} Bxc4 {[%emt 0:00:00]} 22. Rad1 {[%emt 0:03:30]} Rfc8 {[%emt 0:12:00]} 23. Qd7 {[%emt 0:00:30]} Bxd3 {[%emt 0:00:30]} 24. Rxd3 {[%emt 0:00:30]} Qf5 {[%emt 0:00:30]} 25. Qxf5 {[%emt 0:01:30]} Nxf5 {[%emt 0:00:00]} 26. d6 {[%emt 0:00:30]} Rd8 {[%emt 0:02:00]} 27. Red1 {[%emt 0:15:39]} Nd4 {[%emt 0:00:30]} 28. Nxd4 {[%emt 0:00:31]} Bxd4 {[%emt 0:00:30]} 29. Nb5 {[%emt 0:05:23]} Bxb2 {[%emt 0:00:30]} 30. d7 {[%emt 0:04:01]} Kf8 {[%emt 0:11:31]} 31. Rf3 {[%emt 0:01:21]} Be5 {[%emt 0:02:13]} 32. Rd5 {[%emt 0:01:30]} a6 {[%emt 0:00:17]} 33. Na3 {[%emt 0:01:03]} Bd4 {[%emt 0:01:15]} 34. Nc4 {[%emt 0:00:53]} Rab8 {[%emt 0:01:03]} 35. Rd6 {[%emt 0:01:20]} Ke7 {[%emt 0:02:28]} 36. Rxh6 {[%emt 0:00:03]} f6 {[%emt 0:00:02]} 37. Ne3 {[%emt 0:01:37]} Kxd7 {[%emt 0:01:21]} 38. Nd5 {[%emt 0:00:34]} Kc6 {[%emt 0:00:46]} 39. Ne7+ {[%emt 0:00:21]} Kb7 {[%emt 0:00:20]} 40. Nf5 {[%emt 0:00:02]} Be5 {[%emt 0:00:29]} 41. g3 {[%emt 0:00:36]} c4 {[%emt 0:00:32]} 42. Rh7+ {[%emt 0:00:49]} Kc6 {[%emt 0:00:06]} 43. Ne3 {[%emt 0:01:19]} c3 {[%emt 0:00:11]} 44. Re7 {[%emt 0:00:23]} Rd2 {[%emt 0:01:54]} 45. Nc4 {[%emt 0:00:26]} Rd1+ {[%emt 0:00:54]} 46. Kg2 {[%emt 0:00:30]} Bd4 {[%emt 0:00:00]} 47. Ne3 {[%emt 0:00:04]} Rd2 {[%emt 0:00:02]} 48. Re4 {[%emt 0:00:28]} Rd8 {[%emt 0:00:35]} 49. Re6+ {[%emt 0:00:15]} Kc7 {[%emt 0:01:00]} 50. Re7+ {[%emt 0:00:07]} Kc8 {[%emt 0:00:23]} 51. Re6 {[%emt 0:00:50]} Rxa2 {[%emt 0:01:16]} 52. h4 {[%emt 0:00:03]} gxh4 {[%emt 0:00:27]} 53. gxh4 {[%emt 0:00:14]} b5 {[%emt 0:00:29]} 54. Nf5 {[%emt 0:00:22]} Be5 {[%emt 0:00:20]} 55. Rc6+ {[%emt 0:02:13]} Kb7 {[%emt 0:00:10]} 56. Rc5 {[%emt 0:00:24]} Kb6 {[%emt 0:01:04]} 57. Rcxc3 {[%emt 0:00:07]} Bxc3 {[%emt 0:00:14]} 58. Rxc3 {[%emt 0:00:05]} b4 {[%emt 0:00:00]} 59. Rf3 {[%emt 0:00:52]} Ra3 {[%emt 0:00:48]} 60. Ne3 {[%emt 0:00:03]} Rad3 {[%emt 0:02:36]} 61. Rxf6+ {[%emt 0:00:30]} Kb5 {[%emt 0:00:03]} 62. Rf5+ {[%emt 0:00:25]} Ka4 {[%emt 0:00:07]} 63. Nc4 {[%emt 0:00:16]} R3d4 {[%emt 0:00:27]} 64. Ra5+ {[%emt 0:00:48]} Kb3 {[%emt 0:00:30]} 65. Ne3 {[%emt 0:00:03]} Rxh4 {[%emt 0:00:19]} 66. Rxa6 {[%emt 0:00:03]} Rf4 {[%emt 0:00:25]} 67. Kg3 {[%emt 0:01:19]} Rdf8 {[%emt 0:00:06]} 68. Nd1 {[%emt 0:00:39]} Rf3+ {[%emt 0:00:45]} 69. Kg2 {[%emt 0:00:07]} Rd3 {[%emt 0:00:00]} 70. Ne3 {[%emt 0:00:54]} Rd2 {[%emt 0:00:27]} 71. Ng4 {[%emt 0:00:00]} Kb2 {[%emt 0:00:57]} 72. Kg3 {[%emt 0:00:02]} Rd3+ {[%emt 0:00:00]} 73. Kg2 {[%emt 0:00:00]} b3 {[%emt 0:00:32]} 74. Kf1 {[%emt 0:00:00]} Rd2 {[%emt 0:00:44]} 75. Ke1 {[%emt 0:00:01]} Rc2 {[%emt 0:00:00]} 76. Ne3 {[%emt 0:00:15]} Re8 {[%emt 0:01:03]} 77. Kf1 {[%emt 0:01:10]} Rc1+ {[%emt 0:00:11]} 78. Ke2 {[%emt 0:00:00]} Kb1 {[%emt 0:00:23]} 79. Ra3 {[%emt 0:00:40]} b2 {[%emt 0:00:14]} 80. Ra5 {[%emt 0:00:24]} Rc6 {[%emt 0:00:18]} 81. Rd5 {[%emt 0:01:19]} Ra6 {[%emt 0:00:30]} 82. Rb5 {[%emt 0:00:57]} Ka2 {[%emt 0:00:11]} 0-1